[Event "Early-Titled-Tuesday-Blitz-October-10-2023"]
[Site "Chess.com"]
[Date "2023.10.10"]
[Round "6"]
[White "viktorgen2021"]
[Black "ural58"]
[Result "0-1"]
[WhiteElo "2372"]
[BlackElo "2512"]
[TimeControl "180+1"]
[EndTime "9:01:14 PDT"]
[Termination "ural58 won by resignation"]

1. d4 {[%clk 0:02:54]} 1... d5 {[%clk 0:02:55.4]} 2. c4 {[%clk 0:02:53.5]} 2...
e5 {[%clk 0:02:54.6]} 3. e3 {[%clk 0:02:51.7]} 3... exd4 {[%clk 0:02:52.3]} 4.
exd4 {[%clk 0:02:51.8]} 4... Nf6 {[%clk 0:02:52.2]} 5. Nc3 {[%clk 0:02:51.5]}
5... Nc6 {[%clk 0:02:52.3]} 6. cxd5 {[%clk 0:02:49.7]} 6... Nxd5 {[%clk
0:02:51.7]} 7. Nf3 {[%clk 0:02:50.2]} 7... Bb4 {[%clk 0:02:50]} 8. Qb3 {[%clk
0:02:39.4]} 8... O-O {[%clk 0:02:47.6]} 9. Be2 {[%clk 0:02:39.2]} 9... Re8
{[%clk 0:02:46.6]} 10. Bd2 {[%clk 0:02:35.2]} 10... Be6 {[%clk 0:02:28]} 11. Qc2
{[%clk 0:02:27.9]} 11... Nxc3 {[%clk 0:02:19.2]} 12. Bxc3 {[%clk 0:02:17.8]}
12... Bxc3+ {[%clk 0:02:13.7]} 13. Qxc3 {[%clk 0:02:13.8]} 13... Bg4 {[%clk
0:02:10]} 14. Ne5 {[%clk 0:01:57.4]} 14... Nxe5 {[%clk 0:02:01.7]} 15. dxe5
{[%clk 0:01:54]} 15... Bxe2 {[%clk 0:02:00.4]} 16. Kxe2 {[%clk 0:01:54.1]} 16...
Qg5 {[%clk 0:01:57.5]} 17. Rhe1 {[%clk 0:01:42.9]} 17... Qxg2 {[%clk 0:01:55.2]}
18. Ke3 {[%clk 0:01:33]} 18... Qh3+ {[%clk 0:01:51.2]} 19. f3 {[%clk 0:01:30.4]}
19... Qxh2 {[%clk 0:01:49.5]} 20. Rg1 {[%clk 0:01:23.8]} 20... Qxe5+ {[%clk
0:01:47.7]} 0-1

[Event "Early-Titled-Tuesday-Blitz-October-10-2023"]
[Site "Chess.com"]
[Date "2023.10.10"]
[Round "6"]
[White "kritipatel"]
[Black "Zampronha1971"]
[Result "0-1"]
[WhiteElo "2119"]
[BlackElo "2290"]
[TimeControl "180+1"]
[EndTime "9:01:21 PDT"]
[Termination "Zampronha1971 won by resignation"]

1. e4 {[%clk 0:03:00.9]} 1... c5 {[%clk 0:02:59.7]} 2. d4 {[%clk 0:02:59.7]}
2... cxd4 {[%clk 0:02:59.3]} 3. c3 {[%clk 0:03:00.3]} 3... Nf6 {[%clk
0:02:59.2]} 4. e5 {[%clk 0:03:00.2]} 4... Nd5 {[%clk 0:02:59.8]} 5. Nf3 {[%clk
0:02:59]} 5... e6 {[%clk 0:02:59.4]} 6. cxd4 {[%clk 0:02:57.7]} 6... b6 {[%clk
0:02:59.9]} 7. Bd3 {[%clk 0:02:56.8]} 7... Bb7 {[%clk 0:03:00.4]} 8. Nc3 {[%clk
0:02:56.1]} 8... Nxc3 {[%clk 0:02:58.8]} 9. bxc3 {[%clk 0:02:55.5]} 9... Qc7
{[%clk 0:02:59.6]} 10. Bb2 {[%clk 0:02:51.2]} 10... d6 {[%clk 0:02:59.7]} 11.
O-O {[%clk 0:02:50.8]} 11... Nd7 {[%clk 0:02:59.7]} 12. Re1 {[%clk 0:02:49.7]}
12... Be7 {[%clk 0:02:58.8]} 13. c4 {[%clk 0:02:47.1]} 13... O-O {[%clk
0:02:53.8]} 14. Qc2 {[%clk 0:02:38]} 14... h6 {[%clk 0:02:50.4]} 15. Qe2 {[%clk
0:02:37.3]} 15... Rac8 {[%clk 0:02:45.1]} 16. Rac1 {[%clk 0:02:30.7]} 16... dxe5
{[%clk 0:02:45]} 17. Nxe5 {[%clk 0:02:25.8]} 17... Nxe5 {[%clk 0:02:45.1]} 18.
dxe5 {[%clk 0:02:25]} 18... Rfd8 {[%clk 0:02:37.4]} 19. Bb1 {[%clk 0:02:22.4]}
19... Qc6 {[%clk 0:02:26.2]} 20. Be4 {[%clk 0:02:18]} 20... Qxe4 {[%clk
0:02:22.5]} 21. Qxe4 {[%clk 0:02:14.1]} 21... Bxe4 {[%clk 0:02:23.4]} 22. Rxe4
{[%clk 0:02:14.5]} 22... Rd2 {[%clk 0:02:23.7]} 23. Bd4 {[%clk 0:02:01.4]} 23...
Rxc4 {[%clk 0:02:14.8]} 24. Bc3 {[%clk 0:01:13.5]} 24... Rxc3 {[%clk 0:02:05]}
0-1

[Event "Early-Titled-Tuesday-Blitz-October-10-2023"]
[Site "Chess.com"]
[Date "2023.10.10"]
[Round "6"]
[White "Legendinunknown"]
[Black "fu24"]
[Result "1-0"]
[WhiteElo "2832"]
[BlackElo "2626"]
[TimeControl "180+1"]
[EndTime "9:01:36 PDT"]
[Termination "Legendinunknown won by resignation"]

1. d4 {[%clk 0:03:00.9]} 1... g6 {[%clk 0:02:50.3]} 2. c4 {[%clk 0:02:59.8]}
2... Bg7 {[%clk 0:02:47.2]} 3. Nc3 {[%clk 0:03:00]} 3... d6 {[%clk 0:02:36.7]}
4. e4 {[%clk 0:02:56.6]} 4... c5 {[%clk 0:02:36.5]} 5. d5 {[%clk 0:02:55.4]}
5... Bxc3+ {[%clk 0:02:35.4]} 6. bxc3 {[%clk 0:02:54.3]} 6... e5 {[%clk
0:02:36.3]} 7. g4 {[%clk 0:02:49.2]} 7... Kd7 {[%clk 0:02:24]} 8. h4 {[%clk
0:02:47.5]} 8... h5 {[%clk 0:02:22.3]} 9. g5 {[%clk 0:02:46.2]} 9... Kc7 {[%clk
0:02:22.3]} 10. f4 {[%clk 0:02:44.7]} 10... Bg4 {[%clk 0:02:17]} 11. Be2 {[%clk
0:02:42.7]} 11... Bxe2 {[%clk 0:02:16.8]} 12. Qxe2 {[%clk 0:02:43.6]} 12... Nd7
{[%clk 0:02:17.5]} 13. Nf3 {[%clk 0:02:43]} 13... Qe7 {[%clk 0:02:08.5]} 14.
fxe5 {[%clk 0:02:42.6]} 14... Nxe5 {[%clk 0:02:07.3]} 15. Bf4 {[%clk 0:02:41.9]}
15... Nxf3+ {[%clk 0:02:06.1]} 16. Qxf3 {[%clk 0:02:42.8]} 16... f5 {[%clk
0:02:01]} 17. O-O {[%clk 0:02:39.2]} 17... Qxe4 {[%clk 0:01:16.1]} 18. Qxe4
{[%clk 0:02:22.4]} 18... fxe4 {[%clk 0:01:17]} 19. Rae1 {[%clk 0:02:21.6]} 19...
Re8 {[%clk 0:01:16.6]} 20. Bg3 {[%clk 0:02:16.4]} 20... Rh7 {[%clk 0:01:16.3]}
21. Rf4 {[%clk 0:02:12.4]} 21... Rhe7 {[%clk 0:01:14.3]} 22. Re3 {[%clk
0:02:11.7]} 22... Kd7 {[%clk 0:01:11.2]} 23. Rf2 {[%clk 0:02:03.9]} 23... Rf7
{[%clk 0:00:53.3]} 24. Rxf7+ {[%clk 0:02:03]} 1-0

[Event "Early-Titled-Tuesday-Blitz-October-10-2023"]
[Site "Chess.com"]
[Date "2023.10.10"]
[Round "6"]
[White "Vision_64"]
[Black "Darko-Dimitrijevic"]
[Result "1-0"]
[WhiteElo "2339"]
[BlackElo "2161"]
[TimeControl "180+1"]
[EndTime "9:01:37 PDT"]
[Termination "Vision_64 won by resignation"]

1. e4 {[%clk 0:03:00.9]} 1... d6 {[%clk 0:02:58.9]} 2. Nc3 {[%clk 0:02:56.3]}
2... Nf6 {[%clk 0:02:57.7]} 3. f4 {[%clk 0:02:55.1]} 3... e5 {[%clk 0:02:55.4]}
4. fxe5 {[%clk 0:02:47]} 4... dxe5 {[%clk 0:02:54.6]} 5. Bc4 {[%clk 0:02:47]}
5... Bg4 {[%clk 0:02:49]} 6. Nf3 {[%clk 0:02:45.9]} 6... Nbd7 {[%clk 0:02:48.8]}
7. O-O {[%clk 0:02:44.3]} 7... Bc5+ {[%clk 0:02:46.4]} 8. Kh1 {[%clk 0:02:43.1]}
8... O-O {[%clk 0:02:44.6]} 9. d3 {[%clk 0:02:39.2]} 9... h6 {[%clk 0:02:42.3]}
10. Qe1 {[%clk 0:02:33.2]} 10... Kh8 {[%clk 0:02:30.3]} 11. Be3 {[%clk
0:02:32.2]} 11... Bxe3 {[%clk 0:02:22.6]} 12. Qxe3 {[%clk 0:02:33.1]} 12... c6
{[%clk 0:02:22.5]} 13. a4 {[%clk 0:02:25.4]} 13... Qe7 {[%clk 0:02:21.3]} 14. a5
{[%clk 0:02:08.7]} 14... b5 {[%clk 0:02:20.7]} 15. axb6 {[%clk 0:02:07.5]} 15...
axb6 {[%clk 0:02:20.5]} 16. Bb3 {[%clk 0:01:43.8]} 16... Be6 {[%clk 0:02:02.4]}
17. Bxe6 {[%clk 0:01:39.8]} 17... Qxe6 {[%clk 0:02:01.9]} 18. Nh4 {[%clk
0:01:37.9]} 18... Qd6 {[%clk 0:01:38.3]} 19. Nf5 {[%clk 0:01:36.6]} 19... Qb4
{[%clk 0:01:38.2]} 20. Qg3 {[%clk 0:01:30.2]} 20... Rg8 {[%clk 0:01:33.3]} 21.
Rxa8 {[%clk 0:01:28.5]} 1-0

[Event "Early-Titled-Tuesday-Blitz-October-10-2023"]
[Site "Chess.com"]
[Date "2023.10.10"]
[Round "6"]
[White "Alonmindlin"]
[Black "Chessdreamer2020"]
[Result "1-0"]
[WhiteElo "2710"]
[BlackElo "2542"]
[TimeControl "180+1"]
[EndTime "9:01:39 PDT"]
[Termination "Alonmindlin won by resignation"]

1. e4 {[%clk 0:02:57.7]} 1... d6 {[%clk 0:03:00.1]} 2. d4 {[%clk 0:02:54.3]}
2... Nf6 {[%clk 0:03:00.5]} 3. Nc3 {[%clk 0:02:54.8]} 3... c6 {[%clk 0:03:00.7]}
4. g3 {[%clk 0:02:51.6]} 4... e5 {[%clk 0:02:58]} 5. Bg2 {[%clk 0:02:50]} 5...
Nbd7 {[%clk 0:02:58.4]} 6. Nge2 {[%clk 0:02:48.1]} 6... b5 {[%clk 0:02:57.7]} 7.
a3 {[%clk 0:02:45.5]} 7... Be7 {[%clk 0:02:58.2]} 8. O-O {[%clk 0:02:45.8]} 8...
O-O {[%clk 0:02:57.3]} 9. h3 {[%clk 0:02:45]} 9... a5 {[%clk 0:02:57.4]} 10. Be3
{[%clk 0:02:44.2]} 10... Ba6 {[%clk 0:02:55.4]} 11. b4 {[%clk 0:02:42.3]} 11...
Qc7 {[%clk 0:02:43.8]} 12. f4 {[%clk 0:02:37.4]} 12... Rfe8 {[%clk 0:02:40.4]}
13. g4 {[%clk 0:02:32.3]} 13... Nb6 {[%clk 0:02:35.9]} 14. dxe5 {[%clk
0:02:21.7]} 14... dxe5 {[%clk 0:02:34.1]} 15. fxe5 {[%clk 0:02:20]} 15... Nc4
{[%clk 0:02:18.2]} 16. Bf4 {[%clk 0:02:18]} 16... Nxe5 {[%clk 0:02:13.6]} 17.
Qe1 {[%clk 0:02:15.1]} 17... axb4 {[%clk 0:02:03.1]} 18. axb4 {[%clk 0:02:14.3]}
18... Bxb4 {[%clk 0:02:03.3]} 19. Qg3 {[%clk 0:02:14.1]} 19... Nfd7 {[%clk
0:01:51.2]} 20. Rfd1 {[%clk 0:02:05.3]} 20... Nb6 {[%clk 0:01:22.6]} 21. Nd4
{[%clk 0:01:57.2]} 21... Nbc4 {[%clk 0:01:21.7]} 22. Nf5 {[%clk 0:01:52.9]}
22... Bb7 {[%clk 0:01:13.8]} 23. Kh1 {[%clk 0:01:46.4]} 23... Ra2 {[%clk
0:01:10.1]} 24. Rxa2 {[%clk 0:01:45.4]} 1-0

[Event "Early-Titled-Tuesday-Blitz-October-10-2023"]
[Site "Chess.com"]
[Date "2023.10.10"]
[Round "6"]
[White "FERNANDEZL1983"]
[Black "UK_23"]
[Result "1-0"]
[WhiteElo "2520"]
[BlackElo "2379"]
[TimeControl "180+1"]
[EndTime "9:01:47 PDT"]
[Termination "FERNANDEZL1983 won by resignation"]

1. e4 {[%clk 0:03:00.9]} 1... e5 {[%clk 0:03:00.2]} 2. Nf3 {[%clk 0:03:00.3]}
2... Nc6 {[%clk 0:03:00.8]} 3. Bc4 {[%clk 0:03:00.5]} 3... Nf6 {[%clk
0:03:01.1]} 4. d3 {[%clk 0:02:59.6]} 4... Be7 {[%clk 0:02:59.9]} 5. O-O {[%clk
0:03:00.1]} 5... O-O {[%clk 0:03:00.1]} 6. Nc3 {[%clk 0:02:59]} 6... d6 {[%clk
0:02:59.3]} 7. a4 {[%clk 0:02:58.8]} 7... Na5 {[%clk 0:02:58.5]} 8. Ba2 {[%clk
0:02:58]} 8... c5 {[%clk 0:02:59.2]} 9. Bg5 {[%clk 0:02:55.5]} 9... a6 {[%clk
0:02:59.3]} 10. Bxf6 {[%clk 0:02:55.5]} 10... Bxf6 {[%clk 0:02:59.3]} 11. Nd5
{[%clk 0:02:55.4]} 11... Bd7 {[%clk 0:02:53.9]} 12. c3 {[%clk 0:02:55.6]} 12...
b5 {[%clk 0:02:52.1]} 13. b4 {[%clk 0:02:53.4]} 13... cxb4 {[%clk 0:02:51.3]}
14. cxb4 {[%clk 0:02:53.2]} 14... Nc6 {[%clk 0:02:49.9]} 15. a5 {[%clk
0:02:53.4]} 15... Bg4 {[%clk 0:02:43.5]} 16. h3 {[%clk 0:02:49.5]} 16... Be6
{[%clk 0:02:34.6]} 17. Qd2 {[%clk 0:02:47.4]} 17... Rc8 {[%clk 0:02:29.6]} 18.
Rac1 {[%clk 0:02:46.8]} 18... Be7 {[%clk 0:02:11.3]} 19. Rc2 {[%clk 0:02:46.4]}
19... Bxd5 {[%clk 0:02:05.4]} 20. Bxd5 {[%clk 0:02:45.1]} 20... Nd4 {[%clk
0:02:06]} 21. Nxd4 {[%clk 0:02:43.6]} 21... exd4 {[%clk 0:02:05.8]} 22. Rfc1
{[%clk 0:02:43.9]} 22... Rxc2 {[%clk 0:02:05.9]} 23. Qxc2 {[%clk 0:02:43.7]}
23... Bg5 {[%clk 0:02:04.1]} 24. Rf1 {[%clk 0:02:37.2]} 24... Qb8 {[%clk
0:01:44.3]} 25. Qc6 {[%clk 0:02:33.6]} 25... Bd2 {[%clk 0:01:27.4]} 26. Qxa6
{[%clk 0:02:22.3]} 26... Bxb4 {[%clk 0:01:27.5]} 27. Rb1 {[%clk 0:02:21.8]}
27... Bd2 {[%clk 0:01:15.4]} 28. Qxb5 {[%clk 0:02:21.4]} 28... Qc7 {[%clk
0:01:08.5]} 29. a6 {[%clk 0:02:20.2]} 29... h5 {[%clk 0:01:05.4]} 30. Qb7 {[%clk
0:02:19.6]} 30... Qc2 {[%clk 0:01:04.1]} 31. a7 {[%clk 0:02:15.8]} 31... Kh7
{[%clk 0:01:01.3]} 32. Ra1 {[%clk 0:02:11]} 1-0

[Event "Early-Titled-Tuesday-Blitz-October-10-2023"]
[Site "Chess.com"]
[Date "2023.10.10"]
[Round "6"]
[White "MMAHDI2013"]
[Black "chessculator16"]
[Result "1-0"]
[WhiteElo "2493"]
[BlackElo "2293"]
[TimeControl "180+1"]
[EndTime "9:02:28 PDT"]
[Termination "MMAHDI2013 won by checkmate"]

1. c4 {[%clk 0:02:59.6]} 1... c6 {[%clk 0:02:59.9]} 2. Nf3 {[%clk 0:02:55.9]}
2... d5 {[%clk 0:03:00]} 3. g3 {[%clk 0:02:56.8]} 3... Nf6 {[%clk 0:03:00.2]} 4.
Bg2 {[%clk 0:02:56.5]} 4... Bg4 {[%clk 0:03:00.8]} 5. Qb3 {[%clk 0:02:50.4]}
5... Qb6 {[%clk 0:02:59.2]} 6. d3 {[%clk 0:02:49.9]} 6... e6 {[%clk 0:02:58.6]}
7. Be3 {[%clk 0:02:49]} 7... Qc7 {[%clk 0:02:54.8]} 8. Bf4 {[%clk 0:02:46.2]}
8... Qb6 {[%clk 0:02:53.9]} 9. O-O {[%clk 0:02:42.3]} 9... Nbd7 {[%clk
0:02:54.1]} 10. Be3 {[%clk 0:02:39.2]} 10... Qc7 {[%clk 0:02:53.1]} 11. d4
{[%clk 0:02:33.4]} 11... Bd6 {[%clk 0:02:42.6]} 12. c5 {[%clk 0:02:32.7]} 12...
Be7 {[%clk 0:02:42.9]} 13. Bf4 {[%clk 0:02:33.1]} 13... Qc8 {[%clk 0:02:42.6]}
14. Nbd2 {[%clk 0:02:24]} 14... O-O {[%clk 0:02:42.4]} 15. h3 {[%clk 0:02:17.9]}
15... Bxf3 {[%clk 0:02:39.6]} 16. Nxf3 {[%clk 0:02:06.3]} 16... Nh5 {[%clk
0:02:39]} 17. Bd2 {[%clk 0:02:04]} 17... e5 {[%clk 0:02:39.1]} 18. Nxe5 {[%clk
0:01:55.9]} 18... Nxe5 {[%clk 0:02:36.5]} 19. dxe5 {[%clk 0:01:56.8]} 19... Bxc5
{[%clk 0:02:35.1]} 20. g4 {[%clk 0:01:54.3]} 20... Qe6 {[%clk 0:02:32.4]} 21.
gxh5 {[%clk 0:01:52.9]} 21... Qxe5 {[%clk 0:02:32.3]} 22. Qf3 {[%clk 0:01:38.3]}
22... Rae8 {[%clk 0:02:30.2]} 23. Rfe1 {[%clk 0:01:30.1]} 23... Qxb2 {[%clk
0:02:27.3]} 24. Bc3 {[%clk 0:01:24]} 24... Qb6 {[%clk 0:02:27.1]} 25. h6 {[%clk
0:01:22.3]} 25... d4 {[%clk 0:02:22.3]} 26. hxg7 {[%clk 0:01:21.1]} 26... Kxg7
{[%clk 0:02:19.4]} 27. Bd2 {[%clk 0:01:16.2]} 27... Re6 {[%clk 0:02:16.3]} 28.
Rab1 {[%clk 0:01:08.2]} 28... Qc7 {[%clk 0:02:15.3]} 29. Kh1 {[%clk 0:00:53.6]}
29... Rg6 {[%clk 0:02:10.3]} 30. h4 {[%clk 0:00:54.2]} 30... Bd6 {[%clk
0:02:02.4]} 31. h5 {[%clk 0:00:53.4]} 31... Rf6 {[%clk 0:02:02.6]} 32. h6+
{[%clk 0:00:53.3]} 32... Rxh6+ {[%clk 0:01:51.8]} 33. Bxh6+ {[%clk 0:00:52.4]}
33... Kxh6 {[%clk 0:01:52.5]} 34. Qf6+ {[%clk 0:00:52.1]} 34... Kh5 {[%clk
0:01:52.8]} 35. Bf3# {[%clk 0:00:52.2]} 1-0

[Event "Early-Titled-Tuesday-Blitz-October-10-2023"]
[Site "Chess.com"]
[Date "2023.10.10"]
[Round "6"]
[White "Mystery2007"]
[Black "JSlaby"]
[Result "0-1"]
[WhiteElo "2479"]
[BlackElo "2585"]
[TimeControl "180+1"]
[EndTime "9:02:39 PDT"]
[Termination "JSlaby won by resignation"]

1. Nf3 {[%clk 0:03:00.9]} 1... c5 {[%clk 0:02:58.7]} 2. c4 {[%clk 0:03:01.4]}
2... g6 {[%clk 0:02:57.7]} 3. g3 {[%clk 0:03:01.4]} 3... Bg7 {[%clk 0:02:57.6]}
4. Bg2 {[%clk 0:03:02.1]} 4... Nc6 {[%clk 0:02:57.9]} 5. O-O {[%clk 0:03:02.8]}
5... e5 {[%clk 0:02:58.2]} 6. Nc3 {[%clk 0:03:00.1]} 6... Nge7 {[%clk
0:02:58.2]} 7. b3 {[%clk 0:02:33.3]} 7... O-O {[%clk 0:02:57.7]} 8. Bb2 {[%clk
0:02:33.9]} 8... d6 {[%clk 0:02:52.3]} 9. e3 {[%clk 0:02:32.4]} 9... f5 {[%clk
0:02:49.3]} 10. d4 {[%clk 0:02:28.9]} 10... e4 {[%clk 0:02:46.9]} 11. dxc5
{[%clk 0:01:50.9]} 11... exf3 {[%clk 0:02:41.8]} 12. Bxf3 {[%clk 0:01:37.3]}
12... dxc5 {[%clk 0:02:40.8]} 13. Qe2 {[%clk 0:01:36.4]} 13... Ne5 {[%clk
0:02:37.4]} 14. Bd5+ {[%clk 0:01:16.4]} 14... Nxd5 {[%clk 0:02:35.6]} 15. Nxd5
{[%clk 0:01:07.4]} 15... Be6 {[%clk 0:02:35]} 16. Rad1 {[%clk 0:00:57.2]} 16...
Bxd5 {[%clk 0:02:34.2]} 17. Rxd5 {[%clk 0:00:56.3]} 17... Qe7 {[%clk 0:02:34.2]}
18. Rfd1 {[%clk 0:00:39.6]} 18... Rad8 {[%clk 0:02:09.7]} 19. f4 {[%clk
0:00:27.5]} 19... Nc6 {[%clk 0:02:08]} 20. Bxg7 {[%clk 0:00:23.6]} 20... Kxg7
{[%clk 0:02:06.3]} 21. Qb2+ {[%clk 0:00:23.2]} 21... Kg8 {[%clk 0:02:06.5]} 22.
Kf2 {[%clk 0:00:20.6]} 22... Nb4 {[%clk 0:02:03.3]} 23. R5d2 {[%clk 0:00:15.8]}
23... Rfe8 {[%clk 0:02:01.2]} 24. Rxd8 {[%clk 0:00:12.1]} 24... Rxd8 {[%clk
0:02:00.9]} 25. Rxd8+ {[%clk 0:00:11.2]} 25... Qxd8 {[%clk 0:02:01.8]} 26. Ke2
{[%clk 0:00:03.6]} 26... Qd3+ {[%clk 0:02:01.2]} 27. Kf3 {[%clk 0:00:03.8]}
27... Qe4+ {[%clk 0:02:00.4]} 28. Ke2 {[%clk 0:00:02]} 28... Qg2+ {[%clk
0:02:00.3]} 0-1

[Event "Early-Titled-Tuesday-Blitz-October-10-2023"]
[Site "Chess.com"]
[Date "2023.10.10"]
[Round "6"]
[White "Firouzja2003"]
[Black "CSB7"]
[Result "1-0"]
[WhiteElo "3066"]
[BlackElo "2752"]
[TimeControl "180+1"]
[EndTime "9:02:54 PDT"]
[Termination "Firouzja2003 won on time"]

1. d4 {[%clk 0:03:00.9]} 1... Nf6 {[%clk 0:02:59.4]} 2. Nc3 {[%clk 0:02:57.9]}
2... e6 {[%clk 0:02:56.2]} 3. e4 {[%clk 0:02:56.9]} 3... d5 {[%clk 0:02:56.2]}
4. e5 {[%clk 0:02:57.1]} 4... Nfd7 {[%clk 0:02:55.8]} 5. f4 {[%clk 0:02:55.8]}
5... c5 {[%clk 0:02:56]} 6. Nf3 {[%clk 0:02:56.7]} 6... Nc6 {[%clk 0:02:56.1]}
7. Be3 {[%clk 0:02:57.2]} 7... cxd4 {[%clk 0:02:53.3]} 8. Nxd4 {[%clk
0:02:58.1]} 8... Qb6 {[%clk 0:02:53.5]} 9. Nde2 {[%clk 0:02:59]} 9... Qxe3
{[%clk 0:02:45.7]} 10. h4 {[%clk 0:02:52.6]} 10... Qb6 {[%clk 0:02:43.5]} 11.
Rh3 {[%clk 0:02:52.1]} 11... Nc5 {[%clk 0:02:25.1]} 12. a3 {[%clk 0:02:51.8]}
12... Be7 {[%clk 0:02:19.6]} 13. b4 {[%clk 0:02:51.9]} 13... Ne4 {[%clk
0:02:18.2]} 14. Nxe4 {[%clk 0:02:52]} 14... dxe4 {[%clk 0:02:19.1]} 15. Nc3
{[%clk 0:02:52.5]} 15... O-O {[%clk 0:02:09.1]} 16. Nxe4 {[%clk 0:02:47.7]}
16... Rd8 {[%clk 0:02:07.5]} 17. Nd6 {[%clk 0:02:46.9]} 17... Bxd6 {[%clk
0:01:58.2]} 18. exd6 {[%clk 0:02:47.8]} 18... e5 {[%clk 0:01:54.9]} 19. c4
{[%clk 0:02:46.4]} 19... Nd4 {[%clk 0:00:48.3]} 20. c5 {[%clk 0:02:45.9]} 20...
Qc6 {[%clk 0:00:48.1]} 21. Re3 {[%clk 0:02:45.3]} 21... exf4 {[%clk 0:00:44.7]}
22. Re7 {[%clk 0:02:43.8]} 22... Qd5 {[%clk 0:00:39]} 23. Kf2 {[%clk 0:02:40.3]}
23... Be6 {[%clk 0:00:30.9]} 24. Qd2 {[%clk 0:02:39.3]} 24... Qe5 {[%clk
0:00:18.7]} 25. Re1 {[%clk 0:02:38.2]} 25... Qf6 {[%clk 0:00:19]} 26. Re4 {[%clk
0:02:38.1]} 26... Qxh4+ {[%clk 0:00:14.3]} 27. Kg1 {[%clk 0:02:38.6]} 27... Nf5
{[%clk 0:00:13]} 28. Rxb7 {[%clk 0:02:27.2]} 28... g5 {[%clk 0:00:11.3]} 29.
Rxe6 {[%clk 0:02:21.4]} 29... Ng3 {[%clk 0:00:08.3]} 30. Re1 {[%clk 0:02:15.9]}
30... Qh1+ {[%clk 0:00:07.8]} 31. Kf2 {[%clk 0:02:16.5]} 31... Qh4 {[%clk
0:00:08.3]} 32. Qd5 {[%clk 0:01:58.7]} 32... Ne4+ {[%clk 0:00:03.6]} 33. Kf3
{[%clk 0:01:57.1]} 33... Qg3+ {[%clk 0:00:02.2]} 34. Kxe4 {[%clk 0:01:57.5]}
34... Re8+ {[%clk 0:00:02.8]} 35. Kf5 {[%clk 0:01:57.9]} 1-0

[Event "Early-Titled-Tuesday-Blitz-October-10-2023"]
[Site "Chess.com"]
[Date "2023.10.10"]
[Round "6"]
[White "Grandmaster1369"]
[Black "Casper"]
[Result "1-0"]
[WhiteElo "2773"]
[BlackElo "2433"]
[TimeControl "180+1"]
[EndTime "9:02:58 PDT"]
[Termination "Grandmaster1369 won by resignation"]

1. e4 {[%clk 0:02:59.6]} 1... c5 {[%clk 0:03:00.1]} 2. Nc3 {[%clk 0:02:59.9]}
2... d6 {[%clk 0:03:00.5]} 3. f4 {[%clk 0:03:00.5]} 3... g6 {[%clk 0:03:00.4]}
4. Nf3 {[%clk 0:03:01.4]} 4... Bg7 {[%clk 0:03:00.9]} 5. Bc4 {[%clk 0:03:02.1]}
5... a6 {[%clk 0:03:00.2]} 6. a4 {[%clk 0:03:02]} 6... Nc6 {[%clk 0:02:59.3]} 7.
d3 {[%clk 0:03:02.5]} 7... f5 {[%clk 0:02:56.3]} 8. O-O {[%clk 0:02:59.2]} 8...
Nf6 {[%clk 0:02:55.6]} 9. Ng5 {[%clk 0:02:57.9]} 9... Rf8 {[%clk 0:02:54.3]} 10.
Kh1 {[%clk 0:02:34.2]} 10... h6 {[%clk 0:02:47.5]} 11. Ne6 {[%clk 0:02:33.8]}
11... Bxe6 {[%clk 0:02:47.2]} 12. Bxe6 {[%clk 0:02:34.7]} 12... Nd4 {[%clk
0:02:47.3]} 13. Ba2 {[%clk 0:02:32.5]} 13... e6 {[%clk 0:02:48]} 14. Be3 {[%clk
0:02:29.9]} 14... Ng4 {[%clk 0:02:48.3]} 15. Bg1 {[%clk 0:02:30.4]} 15... Qh4
{[%clk 0:02:45.4]} 16. h3 {[%clk 0:02:27.9]} 16... O-O-O {[%clk 0:02:16.6]} 17.
Ne2 {[%clk 0:02:28]} 17... Rde8 {[%clk 0:01:59.9]} 18. c3 {[%clk 0:02:26.3]}
18... Nxe2 {[%clk 0:01:54.9]} 19. Qxe2 {[%clk 0:02:27.2]} 19... e5 {[%clk
0:01:55.5]} 20. exf5 {[%clk 0:02:07.6]} 20... gxf5 {[%clk 0:01:49.9]} 21. Qd2
{[%clk 0:01:58.6]} 21... exf4 {[%clk 0:01:38.8]} 22. Rxf4 {[%clk 0:01:44.8]}
22... Be5 {[%clk 0:01:24.5]} 23. Rf3 {[%clk 0:01:45.1]} 23... Bg3 {[%clk
0:01:24.2]} 24. Raf1 {[%clk 0:01:40.6]} 24... f4 {[%clk 0:01:10.1]} 25. d4
{[%clk 0:01:40.8]} 25... Rf5 {[%clk 0:00:49.8]} 26. dxc5 {[%clk 0:01:29.8]}
26... Ne5 {[%clk 0:00:41.5]} 27. cxd6 {[%clk 0:01:29]} 27... Qd8 {[%clk
0:00:18.8]} 28. Rxg3 {[%clk 0:01:26.9]} 1-0

[Event "Early-Titled-Tuesday-Blitz-October-10-2023"]
[Site "Chess.com"]
[Date "2023.10.10"]
[Round "6"]
[White "Witaliss"]
[Black "valemava"]
[Result "0-1"]
[WhiteElo "2375"]
[BlackElo "2280"]
[TimeControl "180+1"]
[EndTime "9:03:01 PDT"]
[Termination "valemava won by resignation"]

1. Nf3 {[%clk 0:03:00.9]} 1... b5 {[%clk 0:02:58.5]} 2. g3 {[%clk 0:03:00.5]}
2... Bb7 {[%clk 0:02:58.2]} 3. Bg2 {[%clk 0:03:00.7]} 3... g6 {[%clk 0:02:58.6]}
4. O-O {[%clk 0:03:00.7]} 4... Bg7 {[%clk 0:02:58.8]} 5. a4 {[%clk 0:02:59.8]}
5... b4 {[%clk 0:02:58.6]} 6. c3 {[%clk 0:02:59.7]} 6... a5 {[%clk 0:02:58.2]}
7. d4 {[%clk 0:02:54.9]} 7... Nf6 {[%clk 0:02:55.1]} 8. Nbd2 {[%clk 0:02:54.5]}
8... O-O {[%clk 0:02:53.8]} 9. Nc4 {[%clk 0:02:50]} 9... d6 {[%clk 0:02:50.8]}
10. Bg5 {[%clk 0:02:48.3]} 10... Ne4 {[%clk 0:02:47.1]} 11. Qc2 {[%clk
0:02:41.7]} 11... Nxg5 {[%clk 0:02:43.5]} 12. Nxg5 {[%clk 0:02:41.2]} 12... Bxg2
{[%clk 0:02:43]} 13. Kxg2 {[%clk 0:02:41]} 13... e5 {[%clk 0:02:36.2]} 14. Nf3
{[%clk 0:02:37.8]} 14... exd4 {[%clk 0:02:32]} 15. cxd4 {[%clk 0:02:37.3]} 15...
Nd7 {[%clk 0:02:28.1]} 16. Rac1 {[%clk 0:02:33.4]} 16... c5 {[%clk 0:02:26.1]}
17. Rfd1 {[%clk 0:02:29.2]} 17... Qc7 {[%clk 0:02:18.5]} 18. dxc5 {[%clk
0:02:26.5]} 18... dxc5 {[%clk 0:02:18]} 19. b3 {[%clk 0:02:17.2]} 19... Rac8
{[%clk 0:02:05.8]} 20. Qd3 {[%clk 0:02:10.5]} 20... Rfd8 {[%clk 0:01:58.5]} 21.
Qd6 {[%clk 0:02:09.5]} 21... Qa7 {[%clk 0:01:35.6]} 22. Rd3 {[%clk 0:02:05.9]}
22... Bf6 {[%clk 0:01:15.5]} 23. Rcd1 {[%clk 0:02:04.4]} 23... Kg7 {[%clk
0:01:15.1]} 24. Qf4 {[%clk 0:01:57]} 24... Nf8 {[%clk 0:01:11.8]} 25. Rxd8
{[%clk 0:01:53.6]} 25... Rxd8 {[%clk 0:01:12.7]} 26. Rxd8 {[%clk 0:01:53.3]}
26... Bxd8 {[%clk 0:01:13.2]} 27. Qd6 {[%clk 0:01:50.7]} 27... Ne6 {[%clk
0:01:07.1]} 28. Nfe5 {[%clk 0:01:44.9]} 28... Be7 {[%clk 0:01:06.6]} 29. Qd5
{[%clk 0:01:43.3]} 29... Bf6 {[%clk 0:00:55.6]} 30. h4 {[%clk 0:01:39.4]} 30...
h5 {[%clk 0:00:55]} 31. Nd6 {[%clk 0:01:31.1]} 31... Bxe5 {[%clk 0:00:42.5]} 32.
Qxe5+ {[%clk 0:01:31.1]} 32... Kg8 {[%clk 0:00:42]} 33. Ne8 {[%clk 0:01:21.8]}
33... Qa8+ {[%clk 0:00:41]} 34. f3 {[%clk 0:01:14.7]} 34... Qxe8 {[%clk
0:00:40.7]} 0-1